fUST/lending_fUST_20240429
["ID","MTS","AMOUNT","RATE_DAILY","PERIOD"]
[324800635,1714339753238,-1201.36471549,0.0001016,2]
[324800636,1714339759098,-4311.27100756,0.0001016,2]
[324800637,1714339761098,-10159.8593296,0.0001016,2]
[324800638,1714339761118,-6139.98020746,0.00010161,2]
[324800639,1714339761138,-1410.37860263,0.00010162,2]
[324800640,1714339761160,-250.0,0.00010163,2]
[324800641,1714339761180,-1511.1729274,0.000102,2]
[324800642,1714339761200,-201.665342,0.00010349,2]
[324800643,1714339761220,-614.5897894,0.00011145,2]
[324800644,1714339761240,-1018.44698092,0.0001117,2]
[324800645,1714339761260,-15915.682996,0.00011172,2]
[324800646,1714339761280,-420.0,0.00011173,2]
[324800647,1714339761301,-420.0,0.00011175,2]
[324800648,1714339761322,-796.81832394,0.00012028,2]
[324800649,1714339761342,-587.0,0.00012288,2]
[324800650,1714339761362,-587.0,0.00012292,2]
[324800651,1714339761523,-24900.0,0.00012328,2]
[324800652,1714339761544,-409.15735762,0.00013192,2]
[324800653,1714339761569,-1201.16467041,0.00013193,2]
[324800654,1714339762114,238.46912597,0.00010062,2]
[324800655,1714339805586,154.81,0.00025,60]
[324800699,1714339832216,-796.81832393,0.00013321,2]
[324800700,1714339832225,-474.000275,0.00013699,2]
[324800701,1714339832235,-166.666666,0.00013699,2]
[324800702,1714339832244,-796.81832393,0.00014614,2]
[324800703,1714339832253,-1536.58098033,0.0001534,2]
[324800704,1714339832264,-586.66630675,0.0001534,2]
[324800706,1714339832320,-310.0,0.0001534,2]
[324800888,1714339838302,-319.88118119,0.0001534,2]
[324801111,1714339840419,-22146.87153173,0.0001534,2]
[324801113,1714339840429,-150.0,0.0001584,3]
[324801115,1714339840439,-796.81832393,0.00015907,2]
[324801117,1714339840448,-514.17906868,0.00016,2]
[324801120,1714339840458,-1879.32925164,0.00016359,2]
[324801121,1714339840467,-300.0,0.0001636,2]
[324801124,1714339840477,-300.0,0.0001636,2]
[324801126,1714339840486,-150.0,0.000164,3]
[324801128,1714339840496,-150.0,0.0001696,3]
[324801130,1714339840505,-7872.20435228,0.00017009,2]
[324801132,1714339840515,-4147.07273233,0.0001701,2]
[324801133,1714339840525,-912.65569806,0.0001711,2]
[324801135,1714339840535,-363.86320338,0.0001711,2]
[324801137,1714339840545,-200.0,0.0001711,2]
[324801139,1714339840556,-155.08625436,0.00017198,2]
[324801141,1714339840565,-521.8093147,0.00017198,2]
[324801143,1714339840575,-154.99654985,0.00017198,2]
[324801145,1714339840584,-290.59457952,0.00017198,2]
[324801147,1714339840594,-155.10682007,0.00017198,2]
[324801149,1714339840604,-155.16737015,0.00017198,2]
[324801150,1714339840614,-1010.29704153,0.00017198,2]
[324801152,1714339840623,-713.7870833,0.00017198,2]
[324801154,1714339840633,-5799.76547436,0.00017198,2]
[324801156,1714339840642,-206.17044886,0.00017198,2]
[324801158,1714339840651,-2039.18505234,0.00017198,2]
[324801159,1714339840661,-287.07644617,0.00017198,2]
[324801161,1714339840671,-158.18005642,0.00017198,2]
[324801163,1714339840680,-8757.59155262,0.00017199,2]
[324806481,1714339901099,337.22007559,9.999e-05,2]
[324806484,1714339901119,212.68473462,9.999e-05,2]
[324809065,1714339927242,700.42924407,9.999e-05,2]
[324809990,1714339937354,1515.94482901,9.999e-05,2]
[324809993,1714339937374,1109.91542664,9.999e-05,2]
[324811422,1714339952177,363.86320338,9.999e-05,2]
[324811717,1714340059701,164.05365003,9.999e-05,2]
[324811718,1714340408615,409.15735762,9.999e-05,2]
[324811719,1714340502218,171.39787054,9.999e-05,2]
[324811720,1714340530118,549.90481021,9.999e-05,2]
[324811721,1714340550387,700.42924407,9.999e-05,2]
[324811722,1714340849937,1156.41584837,9.999e-05,2]
[324811723,1714340947183,-1694.54008715,0.00012889,2]
[324811724,1714340967270,-171.39787054,0.00012888,2]
[324811725,1714340967290,-184.78916449,0.00012889,2]
[324811726,1714340967310,-588.90100517,0.00012889,2]
[324811727,1714341031857,409.15735762,9.999e-05,2]
[324811767,1714341033620,-931.4354149,0.00012725,2]
[324811768,1714341033630,-300.0,0.00012887,2]
[324811769,1714341033640,-300.0,0.00012887,2]
[324811770,1714341033649,-700.42924407,0.00012888,2]
[324811771,1714341033658,-3936.38473547,0.0001289,2]
[324811772,1714341033669,-431.01573839,0.0001289,2]
[324811868,1714341038643,-2589.60801009,0.00012724,2]
[324811871,1714341038653,-3504.80387842,0.0001289,2]
[324811873,1714341038662,-1742.519174,0.00012891,2]
[324811875,1714341038671,-766.145631,0.00013699,2]
[324811877,1714341038679,-2288.4126181,0.00013727,2]
[324811879,1714341038689,-250.0,0.00013753,2]
[324811880,1714341038700,-186.7584963,0.00013923,2]
[324811882,1714341038709,-420.0,0.00014135,2]
[324811884,1714341038718,-420.0,0.00014176,2]
[324811885,1714341038727,-24900.0,0.00014387,2]
[324811887,1714341038737,-1674.18958818,0.00015297,2]
[324811889,1714341038746,-267.3481632,0.00015503,2]
[324811918,1714341038949,-319.6518368,0.00015503,2]
[324811920,1714341038959,-667.95402306,0.00015568,2]
[324811922,1714341038968,-587.0,0.00015594,2]
[324811924,1714341038977,-150.0,0.0001575,3]
[324811926,1714341038986,-2184.76902273,0.00016038,2]
[324815048,1714341077886,1621.41921468,9.999e-05,2]
[324815060,1714341284235,1057.78601185,9.999e-05,2]
[324815061,1714341395534,154.81422293,9.999e-05,2]
[324815062,1714341411620,700.42924407,9.999e-05,2]
[324815063,1714341428970,154.81422293,9.999e-05,2]
[324815065,1714341772420,154.81422293,9.999e-05,2]
[324815066,1714341787053,700.42924407,9.999e-05,2]
[324815067,1714341806837,1057.78601185,9.999e-05,2]
[324815068,1714341982810,193.75390213,9.999e-05,2]
[324815069,1714341985904,1576.18094803,9.999e-05,2]
[324815070,1714341986608,521.92146173,9.999e-05,2]
[324815071,1714341987198,460.04744625,9.999e-05,2]
[324815072,1714341994819,468.79013614,9.999e-05,2]
[324815073,1714341997433,1621.41921468,9.999e-05,2]
[324815074,1714342001531,154.81422293,9.999e-05,2]
[324815075,1714342003982,520.3609854,9.999e-05,2]
[324815076,1714342014824,472.51280237,9.999e-05,2]
[324815077,1714342017279,308.72716186,9.999e-05,2]
[324815078,1714342024452,158.84979259,9.999e-05,2]
[324815079,1714342028441,526.73680751,9.999e-05,2]
[324815080,1714342141441,291.61970245,9.999e-05,2]
[324815081,1714342143787,291.61970245,9.999e-05,2]
[324815082,1714342146279,291.61970245,9.999e-05,2]
[324815083,1714342149107,-271.57187408,0.00010726,2]
[324815084,1714342150785,291.61970245,9.999e-05,2]
[324815085,1714342154111,-7600.6324782,0.00010726,2]
[324815086,1714342154132,-2806.69914,0.00010727,2]
[324815087,1714342154151,-2589.60801009,0.00010728,2]
[324815088,1714342154171,-300.0,0.00010728,2]
[324815089,1714342154192,-300.0,0.00010728,2]
[324815090,1714342154212,-42199.48212506,0.00010729,2]
[324815091,1714342154234,-24900.0,0.00010733,2]
[324815092,1714342154254,-2426.5975933,0.00010971,2]
[324815093,1714342154274,-159.36366481,0.00011786,2]
[324815094,1714342154294,-420.0,0.00011792,2]
[324815095,1714342154315,-420.0,0.000118,2]
[324815096,1714342154334,-1665.86011051,0.000125,2]
[324815097,1714342155275,291.61970245,9.999e-05,2]
[324815098,1714342164090,-2485.82236798,0.000125,2]
[324815117,1714342232698,-700.42924407,0.00012498,2]
[324815118,1714342232708,-154.81422293,0.00012499,2]
[324815119,1714342232718,-58.00256037,0.000125,2]
[324815175,1714342238684,-5706.68039751,0.000125,2]
[324815177,1714342238694,-188.96899093,0.00012625,2]
[324815179,1714342238703,-154.93980959,0.00013697,2]
[324815181,1714342238713,-154.92159694,0.00013697,2]
[324815183,1714342238722,-156.40991382,0.00013697,2]
[324815185,1714342238732,-300.0,0.00013697,2]
[324815187,1714342238741,-917.05219838,0.00013698,2]
[324815189,1714342238750,-1394.47823045,0.00013699,2]
[324815356,1714342240021,-47089.16698265,0.00013699,2]
[324815358,1714342240030,-383.072815,0.00013699,2]
[324815360,1714342240039,-166.666666,0.00013699,2]
[324815362,1714342240048,-460.04744625,0.00014257,2]
[324815364,1714342240057,-1576.18094803,0.00014727,2]
[324815366,1714342240066,-300.0,0.00014728,2]
[324815368,1714342240075,-2779.19807457,0.00015,2]
[324815370,1714342240085,-2391.54694339,0.00015,2]
[324815372,1714342240094,-420.0,0.00015066,2]
[324815374,1714342240103,-387.9390829,0.00015616,2]
[324815376,1714342240112,-150.0,0.000157,3]
[324815378,1714342240122,-158.84979259,0.00015705,2]
[324815380,1714342240131,-323.91983136,0.00016038,2]
[324815382,1714342240140,-420.0,0.00016123,2]
[324815384,1714342240149,-150.0,0.0001627,3]
[324815386,1714342240158,-2589.60801009,0.00016571,2]
[324815388,1714342240167,-7872.20435228,0.00016571,2]
[324815390,1714342240176,-2806.69914,0.00016572,2]
[324815392,1714342240187,-587.0,0.00016573,2]
[324815394,1714342240195,-306.0,0.0001674,2]
[324815396,1714342240204,-150.0,0.0001683,3]
[324815398,1714342240213,-157.53850697,0.00017027,2]
[324815400,1714342240222,-279.79721757,0.00017198,2]
[324815402,1714342240232,-186.16529809,0.00017198,2]
[324815404,1714342240241,-206.09782636,0.00017198,2]
[324815406,1714342240251,-155.01755094,0.00017198,2]
[324815408,1714342240260,-200.0,0.00017198,2]
[324815410,1714342240269,-1353.11513473,0.00017198,2]
[324815412,1714342240278,-155.19238874,0.00017198,2]
[324815414,1714342240288,-154.82968734,0.00017198,2]
[324815416,1714342240297,-208.79729126,0.00017198,2]
[324815418,1714342240306,-221.8833627,0.00017198,2]
[324815420,1714342240316,-225.97526931,0.00017198,2]
[324815422,1714342240325,-409.9813796,0.00017199,2]
[324815424,1714342240334,-44444.0,0.000172,2]
[324815426,1714342240343,-170.22064044,0.00017295,2]
[324815428,1714342240352,-151.0,0.00017296,2]
[324815430,1714342240361,-151.0,0.00017296,2]
[324815432,1714342240371,-166.618258,0.00017296,2]
[324815434,1714342240379,-166.618258,0.00017296,2]
[324815436,1714342240389,-228.67045727,0.00017297,2]
[324815438,1714342240398,-155.22205483,0.00017297,2]
[324815440,1714342240407,-703.90495369,0.00017297,2]
[324815442,1714342240420,-156.06083935,0.00017297,2]
[324815444,1714342240430,-155.03086998,0.00017297,2]
[324815446,1714342240441,-157.79100369,0.00017297,2]
[324815448,1714342240450,-180.78197297,0.00017297,2]
[324815451,1714342240460,-522.28459991,0.00017297,2]
[324815453,1714342240469,-468.51779384,0.00017297,2]
[324815455,1714342240478,-430.29741568,0.00017297,2]
[324815457,1714342240487,-155.01534684,0.00017297,2]
[324815459,1714342240497,-567.42793642,0.00017297,2]
[324815461,1714342240506,-471.73373552,0.00017297,2]
[324815463,1714342240515,-309.78539133,0.00017297,2]
[324815465,1714342240525,-532.01749123,0.00017297,2]
[324815467,1714342240534,-564.88021518,0.00017298,2]
[324815469,1714342240543,-233.17583669,0.00017298,2]
[324815471,1714342240553,-718.44665129,0.00017298,2]
[324815473,1714342240562,-207.96665551,0.00017298,2]
[324815475,1714342240571,-314.9659743,0.00017298,2]
[324815477,1714342240581,-158.24993973,0.00017298,2]
[324815479,1714342240590,-206.79651389,0.00017298,2]
[324815481,1714342240599,-233.41814442,0.00017298,2]
[324815483,1714342240608,-314.73609379,0.00017298,2]
[324815485,1714342240618,-674.54875901,0.00017298,2]
[324815487,1714342240627,-200.0,0.00017298,2]
[324815489,1714342240636,-46024.03608053,0.00017299,2]
[324815491,1714342240645,-223.989712,0.00017299,2]
[324815493,1714342240654,-165.948163,0.00017299,2]
[324815495,1714342240663,-165.948163,0.00017299,2]
[324815497,1714342240673,-165.948163,0.00017299,2]
[324815499,1714342240682,-165.948163,0.00017299,2]
[324815501,1714342240692,-151.0,0.00017299,2]
[324815503,1714342240702,-166.618258,0.00017299,2]
[324815505,1714342240711,-166.618258,0.00017299,2]
[324815507,1714342240720,-197.29815439,0.00017299,2]
[324815509,1714342240730,-160.0,0.00017299,2]
[324815511,1714342240740,-78985.07978184,0.000173,3]
[324815755,1714342242984,-5953.09,0.000173,3]
[324817964,1714342316839,154.81422293,9.999e-05,2]
[324817965,1714342488306,154.81422293,9.999e-05,2]
[324817966,1714342502274,154.89087088,9.999e-05,2]
[324817967,1714342616280,1576.18094803,9.999e-05,2]
[324817968,1714342637341,291.61970245,9.999e-05,2]
[324817969,1714342667281,460.04744625,9.999e-05,2]
[324817970,1714342670518,154.81422293,9.999e-05,2]
[324817971,1714342830688,15000.0,0.0001,2]
[324817972,1714343021319,1576.18094803,9.999e-05,2]
[324817973,1714343040403,291.61970245,9.999e-05,2]
[324817974,1714343052345,460.04744625,9.999e-05,2]
[324817975,1714343067105,154.79876161,0.0001,2]
[324817976,1714343081094,154.79876161,9.999e-05,2]
[324817977,1714343105049,154.79876161,9.999e-05,2]
[324817978,1714343107101,222.25761053,9.999e-05,2]
[324817979,1714343253108,-154.79876161,0.00011557,2]
[324817980,1714343253129,-2589.60801009,0.00011558,2]
[324817981,1714343253151,-1566.86423586,0.00011559,2]
[324817982,1714343279392,1576.18094803,9.999e-05,2]
[324817983,1714343314363,460.04744625,9.999e-05,2]
[324817984,1714343324949,291.61970245,9.999e-05,2]
[324817985,1714343370128,-1576.18094803,0.00011551,2]
[324817986,1714343370148,-300.0,0.00011552,2]
[324817987,1714343370170,-300.0,0.00011552,2]
[324817988,1714343370190,-27300.6486055,0.00011552,2]
[324817989,1714343371166,-734.51872055,0.00011552,2]
[324818028,1714343431969,-300.0,0.00011551,2]
[324818029,1714343431979,-300.0,0.00011551,2]
[324818030,1714343431989,-2806.69914,0.00011551,2]
[324818031,1714343431998,-31165.21926645,0.00011552,2]
[324818032,1714343432008,-7872.20435228,0.00011555,2]
[324818033,1714343432017,-2589.60801009,0.00011556,2]
[324818034,1714343432027,-291.61970245,0.00011557,2]
[324818035,1714343432036,-460.04744625,0.00011557,2]
[324818036,1714343432046,-250.20648983,0.00011558,2]
[324818037,1714343432055,-5621.4701763,0.00011566,2]
[324818038,1714343432067,-19278.5298237,0.00011566,2]
[324818039,1714343432076,-2485.822368,0.00012575,2]
[324818040,1714343432085,-243.0,0.00012686,2]
[324818041,1714343432095,-420.0,0.00012706,2]
[324818042,1714343432104,-1464.91588971,0.000129,2]
[324818043,1714343432114,-154.87609912,0.00013573,2]
[324818044,1714343432123,-2454.42608852,0.00013582,2]
[324818045,1714343432133,-1464.91588965,0.00013667,2]
[324818046,1714343432143,-802.95279647,0.00013687,2]
[324818047,1714343432152,-241.2890322,0.00013688,2]
[324818048,1714343432162,-218.31032935,0.00013691,2]
[324818049,1714343432171,-511.704123,0.00013699,2]
[324818050,1714343432180,-166.666666,0.00013699,2]
[324818051,1714343432189,-226.80921778,0.00013699,2]
[324818052,1714343432199,-587.0,0.00013977,2]
[324818053,1714343432208,-823.0,0.00015375,2]
[324818054,1714343432216,-150.0,0.0001562,3]
[324818055,1714343432225,-1464.91588965,0.00015872,2]
[324818056,1714343432235,-150.0,0.0001619,3]
[324818057,1714343432244,-1489.36130775,0.00016231,2]
[324818058,1714343432253,-150.0,0.0001677,3]
[324818059,1714343432262,-1152.0,0.00016912,2]
[324818060,1714343432271,-157.53850697,0.00017126,2]
[324818061,1714343432281,-7968.82877667,0.000172,2]
[324818062,1714343432292,-1008.66608802,0.000172,2]
[324818063,1714343432303,-559.45431183,0.000172,2]
[324818064,1714343432322,-1048.245,0.000172,2]
[324818114,1714343437968,-21649.44300554,0.000172,2]
[324818360,1714343440112,-322.51,0.000172,2]
[324818367,1714343440168,-11886.85281794,0.000172,2]
[324818369,1714343440182,-153.0,0.00017288,2]
[324818372,1714343440198,-153.0,0.00017288,2]
[324818374,1714343440212,-587.33781554,0.00017298,2]
[324818377,1714343440226,-1057.47244,0.00017298,2]
[324818379,1714343440235,-472.01022916,0.00017298,2]
[324818381,1714343440245,-883.33764023,0.00017298,2]
[324818383,1714343440254,-345.0880402,0.00017298,2]
[324818385,1714343440264,-15672.49505265,0.00017298,2]
[324818387,1714343440274,-1576.18094803,0.00017298,2]
[324818409,1714343440462,-2625.86025565,0.00017298,2]
[324818412,1714343440484,-8324.23243076,0.00017298,2]
[324818414,1714343440494,-213.31717959,0.00017298,2]
[324818416,1714343440504,-155.93992905,0.00017298,2]
[324818418,1714343440513,-2111.55536447,0.00017298,2]
[324818421,1714343440524,-165.22529599,0.00017298,2]
[324818422,1714343440534,-597.99945931,0.00017298,2]
[324818424,1714343440543,-212.14600576,0.00017299,2]
[324818426,1714343440553,-475.89906102,0.00017299,2]
[324818428,1714343440562,-59159.33680056,0.000173,3]
[324818430,1714343440572,-57239.99163732,0.000173,2]
[324818680,1714343443044,-416.62726208,0.00017299,2]
[324818995,1714343446139,-10000.0,0.00017299,2]
[324820353,1714343476777,520.3609854,9.999e-05,2]
[324820354,1714343601054,549.90481021,9.999e-05,2]
[324820355,1714343608371,154.79876161,9.999e-05,2]
[324820356,1714343848795,283.7111045,9.999e-05,2]
[324820366,1714344012491,1576.18094803,9.999e-05,2]
[324820367,1714344432159,-1694.54008715,0.00014605,2]
[324820368,1714344526797,409.15735762,9.999e-05,2]
[324820369,1714344553193,-166.666666,0.00014338,2]
[324820370,1714344568820,255.852061,0.00014373,2]
[324820371,1714344625654,154.79876161,0.00014373,2]
[324820397,1714344632690,-2119.2385345,0.00014598,2]
[324820403,1714344632747,-5752.96581778,0.00014598,2]
[324820405,1714344632756,-300.0,0.00014598,2]
[324820407,1714344632765,-300.0,0.00014598,2]
[324820409,1714344632775,-2806.69914,0.00014599,2]
[324820411,1714344632784,-895.06792294,0.00014605,2]
[324820413,1714344632793,-154.79876161,0.00014605,2]
[324820429,1714344632934,-213.93273451,0.00014616,2]
[324820432,1714344632946,-167.72888628,0.00014621,2]
[324820434,1714344632955,-150.0,0.0001521,3]
[324820436,1714344632964,-24900.0,0.00015222,2]
[324820438,1714344632973,-915.57243104,0.00015244,2]
[324820439,1714344632982,-167.72888625,0.00015481,2]
[324820441,1714344632991,-287.0,0.00015983,2]
[324820443,1714344633001,-420.0,0.00016058,2]
[324820445,1714344633011,-167.72888625,0.0001634,2]
[324820447,1714344633020,-153.0,0.00016578,2]
[324820449,1714344633029,-153.0,0.00016778,2]
[324820451,1714344633038,-153.0,0.00016778,2]
[324820453,1714344633047,-915.57243103,0.00016927,2]
[324820455,1714344633056,-1201.16467041,0.00017026,2]
[324820457,1714344633066,-700.42924407,0.00017125,2]
[324820459,1714344633075,-157.53850697,0.00017126,2]
[324820461,1714344633084,-153.0,0.00017178,2]
[324820463,1714344633094,-409.15735762,0.00017198,2]
[324820465,1714344633103,-154.79876161,0.00017198,2]
[324820467,1714344633112,-1621.41921468,0.00017198,2]
[324820469,1714344633122,-12156.02728827,0.00017199,2]
[324820471,1714344633136,-8039.87303008,0.000172,2]
[324820473,1714344633145,-167.72888625,0.000172,2]
[324820475,1714344633154,-582.68685953,0.000172,2]
[324820477,1714344633163,-38359.25864423,0.000172,2]
[324820724,1714344638167,-3246.38003477,0.00014743,2]
[324820731,1714344638224,-632.236,0.00014743,2]
[324821005,1714344642351,-21021.38396523,0.00014743,2]
[324821007,1714344642360,-6084.74135577,0.000172,2]
[324821009,1714344642373,-2000.0,0.000172,2]
[324821011,1714344642382,-153.0,0.00017288,2]
[324821013,1714344642391,-153.0,0.00017288,2]
[324821015,1714344642400,-153.0,0.00017288,2]
[324821017,1714344642409,-153.0,0.00017288,2]
[324821019,1714344642418,-153.0,0.00017288,2]
[324821021,1714344642427,-153.0,0.00017288,2]
[324821023,1714344642436,-153.0,0.00017288,2]
[324821025,1714344642445,-153.0,0.00017288,2]
[324821027,1714344642454,-153.0,0.00017288,2]
[324821029,1714344642463,-155.26053656,0.00017298,2]
[324821031,1714344642472,-155.29540346,0.00017298,2]
[324821033,1714344642481,-283.39219932,0.00017298,2]
[324821035,1714344642490,-1398.06578623,0.00017298,2]
[324821037,1714344642500,-158.9698689,0.00017298,2]
[324821039,1714344642509,-8242.96209755,0.00017299,2]
[324821041,1714344642520,-19607.78113148,0.00017299,2]
[324821043,1714344642529,-416.7105031,0.00017299,2]
[324821045,1714344642537,-21293.51779972,0.000173,3]
[324821198,1714344643735,238.47884058,0.00014373,2]
[324821347,1714344646209,-324.17162064,0.000173,3]
[324821349,1714344646221,-630.0,0.000173,3]
[324821422,1714344646944,182.12890172,0.00014373,2]
[324821576,1714345041534,958.73054019,0.00022,120]
[324821577,1714345251019,700.42924407,9.999e-05,2]
[324821578,1714345640108,-1694.54008715,0.00014716,2]
[324821579,1714345648278,-700.42924407,0.00014715,2]
[324821580,1714345648298,-956.06638455,0.00014716,2]
[324821581,1714345662446,206.77268513,9.999e-05,2]
[324821582,1714345825915,154.79876161,9.999e-05,2]
[324821644,1714345832322,-1834.54695498,0.00014714,2]
[324821646,1714345832334,-755.06105511,0.00014714,2]
[324821648,1714345832343,-2240.01671294,0.00014715,2]
[324821650,1714345832353,-156.0926683,0.00014716,2]
[324821652,1714345832362,-255.852061,0.00014839,2]
[324821654,1714345832372,-166.666666,0.00015052,2]
[324821656,1714345832381,-150.0,0.0001518,3]
[324821658,1714345832391,-300.0,0.00015386,2]
[324821660,1714345832400,-300.0,0.00015386,2]
[324821662,1714345832410,-4243.04733347,0.00015387,2]
[324821665,1714345832421,-498.46344161,0.00015387,2]
[324821667,1714345832433,-2035.03861485,0.00015387,2]
[324821943,1714345838525,-7439.032529,0.00015387,2]
[324821944,1714345838538,-992.83271995,0.00015387,2]
[324821946,1714345838553,-9691.58536112,0.00015387,2]
[324821948,1714345838562,-206.77268513,0.00016093,2]
[324821950,1714345838572,-700.42924407,0.00016094,2]
[324821952,1714345838581,-319.0,0.00016833,2]
[324821954,1714345838590,-420.0,0.00016925,2]
[324821955,1714345838599,-1524.21270968,0.00017298,2]
[324822315,1714345842072,-1016.8,0.00017298,2]
[324822317,1714345842083,-2957.98691505,0.00017298,2]
[324822319,1714345842092,-1091.30429574,0.00017298,2]
[324822321,1714345842102,-2184.76902273,0.00017298,2]
[324822323,1714345842111,-1694.54008715,0.00017298,2]
[324822325,1714345842121,-235.93437582,0.00017298,7]
[324822327,1714345842130,-272.74470342,0.00017298,2]
[324822328,1714345842139,-180.05759476,0.00017299,2]
[324822330,1714345842149,-18455.8236901,0.000173,3]
[324822332,1714345842158,-41527.95190763,0.000173,2]
[324822535,1714345843517,-1257.0,0.000173,2]
[324822908,1714345932825,2176.08460253,0.0001,2]
[324822909,1714346173079,-300.0,0.00014728,2]
[324822910,1714346203933,-1435.5,0.00015565,2]
[324822911,1714346238175,-1154.10801009,0.00015565,2]
[324822912,1714346238196,-672.43809672,0.00015568,2]
[324822913,1714346238219,-300.0,0.00015999,2]
[324822914,1714346238242,-16247.65389319,0.00016,2]
[324822915,1714346312413,-2806.69914,0.00015564,2]
[324822916,1714346312433,-300.0,0.00015999,2]
[324822917,1714346312454,-4028.76086,0.00016,2]
[324822918,1714346735433,2155.76524103,9.999e-05,2]
[324822919,1714346797167,-271.57604148,0.00014728,2]
[324822920,1714346835152,-2806.69914,0.00015701,2]
[324822921,1714346835173,-1504.57186756,0.00015702,2]
[324822922,1714346853090,-312.83743319,0.00015,2]
[324822923,1714346853111,-1085.03614253,0.00015702,2]
[324822924,1714346853132,-300.0,0.00015707,2]
[324822925,1714346853154,-787.94879226,0.00015708,2]
[324822926,1714346940432,1011.54844568,9.999e-05,2]
[324822941,1714347032623,-166.666666,0.00015525,2]
[324822942,1714347032632,-188.96899093,0.00015607,2]
[324822943,1714347032642,-312.83743319,0.00015706,2]
[324822944,1714347032651,-300.0,0.00015706,2]
[324822945,1714347032660,-511.52690988,0.00015707,2]
[324822946,1714347032672,-500.0,0.00015707,2]
[324822991,1714347038805,-1795.17223012,0.00015707,2]
[324822993,1714347038814,-2589.60801009,0.00015707,2]
[324822995,1714347038824,-603.40526354,0.00015708,2]
[324823558,1714347046544,-297.07324744,0.00015708,2]
[324823559,1714347046675,-547.55742166,0.00015708,2]
[324823560,1714347564228,1879.32925164,9.999e-05,2]
[324823561,1714347585566,362.23957674,9.999e-05,2]
[324823562,1714348025889,206.20335896,9.999e-05,2]
[324823563,1714348035948,520.3609854,9.999e-05,2]
[324823564,1714348043119,-362.23957674,0.00012972,2]
[324823565,1714348043139,-2172.1428977,0.00012972,2]
[324823566,1714348050188,-417.46511239,0.00012972,2]
[324823567,1714348050210,-2011.59369531,0.00012973,2]
[324823568,1714348153102,-24900.0,0.00011972,2]
[324823569,1714348153122,-300.0,0.00012966,2]
[324823570,1714348153141,-15672.49505265,0.00012967,2]
[324823571,1714348153159,-2806.69914,0.00012968,2]
[324823572,1714348153180,-42350.42058867,0.00012973,2]
[324823573,1714348163633,-686.67932329,0.000129,2]
[324823574,1714348163664,-1596.84725221,0.00012973,2]
[324823627,1714348237741,-1035.76341699,0.00012973,2]
[324823629,1714348237751,-154.81422293,0.00012973,2]
[324823631,1714348237760,-182.12890172,0.00012973,2]
[324823633,1714348237769,-6.12888357,0.00012974,2]
[324823635,1714348237780,-1976.80032003,0.00012974,2]
[324823638,1714348237797,-585.99897291,0.00012974,2]
[324823645,1714348237853,-55.22983833,0.00012974,2]
[324823647,1714348237862,-166.666666,0.00013699,2]
[324823649,1714348237872,-1355.1421955,0.00014045,2]
[324823651,1714348237881,-255.8520621,0.00014913,2]
[324823653,1714348237891,-686.67932327,0.00014928,2]
[324823655,1714348237900,-150.0,0.0001518,3]
[324823657,1714348237910,-150.0,0.0001579,3]
[324823659,1714348237919,-150.0,0.0001641,3]
[324823661,1714348237928,-306.0,0.00016478,2]
[324823663,1714348237937,-2806.69914,0.00016699,2]
[324823665,1714348237946,-155.6029123,0.000167,2]
[324823667,1714348237955,-153.0,0.00016778,2]
[324823669,1714348237964,-300.0,0.0001678,2]
[324823671,1714348237973,-620.4265716,0.00016781,2]
[324823673,1714348237982,-300.0,0.00016988,2]
[324823675,1714348237991,-686.67932327,0.00016989,2]
[324823677,1714348238001,-150.0,0.0001702,3]
[324823679,1714348238009,-157.53850697,0.00017126,2]
[324823681,1714348238018,-6048.43919934,0.000172,2]
[324823683,1714348238028,-357.85875757,0.00017298,2]
[324823825,1714348239997,-362.23957674,0.00015179,2]
[324823826,1714348240019,-199.18742637,0.00017298,2]
[324823827,1714348240028,-154.79876161,0.00017298,2]
[324823828,1714348240038,-312.70855139,0.00017298,2]
[324823829,1714348240046,-808.22914224,0.00017298,2]
[324823830,1714348240056,-474.97592894,0.00017298,2]
[324823831,1714348240065,-154.97433846,0.00017298,2]
[324823832,1714348240074,-791.87198858,0.00017298,2]